Workbook

Sheet Výpočetní program
B2: PROGRAM PRO STANOVENÍ STŘEDNÍ AERODYNAMICKÉ TĚTIVY KŘÍDLA OBECNÉHO PŮDORYSU
C5: Definujte typ křídla | F5: lichoběžník | H5: Zadejte půdorysný tvar vašeho křídla. V případě složeného křídla z více částí program předpokládá, že se "typ křídla" (jeho geometrické řazení) nemění. Předpokládá se pravoúhlý trojúhelník = delta křídlo)
H6: Možné vstupy: obdélník, lichoběžník, trojúhelník, elipsa
C8: Zadejte počet částí křídla P | F8: 4 | H8: Křídlo je buď jednoduché (neměnná geom.) nebo složené (proměnná geom.). Složené křídlo je nutné rozdělit na více jednoduchých subkřídel v místech, kde se geometrie mění viz. obrázek.
H9: Možné vstupy (počet subkřídel): 1, 2, 3 ,4
C11: Zadejte parametry křídla :
C13: Rozpětí 𝑙 | F13: 740 | H13: Změňte hodnotu 0 na vaši hodnotu.
C15: Hloubka u kořene křídla 𝑏0 | F15: 150 | H15: Změňte hodnotu 0 na vaši hodnotu.
C16: Hloubka subkřídla 𝑏1 | F16: 130 | H16: Změňte hodnotu 0 na vaši hodnotu. | K16: (zajedte 1E-30)
C17: Hloubka subkřídla 𝑏2 | F17: 100 | H17: Změňte hodnotu 0 na vaši hodnotu.
C18: Hloubka subkřídla 𝑏3 | F18: 60 | H18: Změňte hodnotu 0 na vaši hodnotu.
C19: Hloubka subkřídla 𝑏4 | F19: 20 | H19: Změňte hodnotu 0 na vaši hodnotu.
C21: Šípovitost -> vzdálenost nb1 | F21: 20 | H21: Změňte hodnotu 0 na vaši hodnotu. | K21: (je rovna b0)
C22: Šípovitost -> vzdálenost nb2 | F22: 50 | H22: Změňte hodnotu 0 na vaši hodnotu.
C23: Šípovitost -> vzdálenost nb3 | F23: 90 | H23: Změňte hodnotu 0 na vaši hodnotu.
C24: Šípovitost -> vzdálenost nb4 | F24: 130 | H24: Změňte hodnotu 0 na vaši hodnotu.
C26: Šípovitost -> vzdálenost zb1 | F26: 120 | H26: Změňte hodnotu 0 na vaši hodnotu. | K26: (je rovna l/2)
C27: Šípovitost -> vzdálenost zb2 | F27: 230 | H27: Změňte hodnotu 0 na vaši hodnotu.
C28: Šípovitost -> vzdálenost zb3 | F28: 320 | H28: Změňte hodnotu 0 na vaši hodnotu.
C29: Šípovitost -> vzdálenost zb4 | F29: 370 | H29: Změňte hodnotu 0 na vaši hodnotu.
C31: Vypočtená hodnota ploch subkřídel :
C33: Plocha křídla S1 | F33: =O42 -> 16800 | H33: Plocha křídla a plochy jeho částí pro kontrolu. viz. obrázek.
C34: Plocha křídla S2 | F34: =O43 -> 12650
C35: Plocha křídla S3 | F35: =O44 -> 7200
C36: Plocha křídla S4 | F36: =O45 -> 2000
C37: Plocha křídla S (celková) | F37: =_xlfn.IFS(F5="elipsa",PI()/4*F15*F13,SUM(F33:F36),SUM(F33:F36)) -> 38650
C39: VÝSLEDNÉ HODNOTY DEFINUJÍCÍ STŘEDNÍ AERODYNAMICKOU TĚTIVU
C41: Střední aerodynamická hloubka | F41: =_xlfn.IFS(F5="elipsa",8/(3*PI())*F15,(J42*F33+J43*F34+J44*F35+J45*F36)/(F33+F34+F35+F36),(J42*F33+J43*F34+J44*F35+J45*F36)/(F33+F34+F35+F36)) -> 116.2656317 | H41: Pole | I41: zúžení^-1 | J41: bSAT | K41: zSAT | L41: xSAT | M41: zSAT gl. | N41: xSAT gl. | O41: Plocha
C42: Poloha SAT na rozpětí | F42: =_xlfn.IFS(F5="elipsa",0.4244*F13/2,(M42*F33+M43*F34+M44*F35+M45*F36)/(F33+F34+F35+F36),(M42*F33+M43*F34+M44*F35+M45*F36)/(F33+F34+F35+F36)) -> 150.1207417 | H42: 1 | I42: =IFERROR(F16/F15,0) -> 0.8666666667 | J42: =_xlfn.IFS(I42=0,0,(2/3)*F15*((1+I42+I42^2)/(1+I42)),(2/3)*F15*((1+I42+I42^2)/(1+I42))) -> 140.2380952 | K42: =_xlfn.IFS(I42=0,0,(2*F26)/6*(1+2*I42)/(1+I42),(2*F26)/6*(1+2*I42)/(1+I42)) -> 58.57142857 | L42: =IFERROR(K42/F26*F21,0) -> 9.761904762 | M42: =_xlfn.IFS(K42=0,0,K42,K42) -> 58.57142857 | N42: =_xlfn.IFS(L42=0,0,L42,L42) -> 9.761904762 | O42: =IFERROR(_xlfn.IFS(IFERROR(F15*(F26-F25)+((F16-F15)/2)*(F26-F25),0)<0,0),IFERROR(F15*(F26-F25)+((F16-F15)/2)*(F26-F25),0)) -> 16800
C43: Vzdálenost náběžné hrany | F43: =_xlfn.IFS(F5="elipsa","viz. Obr.1",F5="obdélník",0,(N42*F33+N43*F34+N44*F35+N45*F36)/(F33+F34+F35+F36),(N42*F33+N43*F34+N44*F35+N45*F36)/(F33+F34+F35+F36)) -> 33.73436826 | H43: 2 | I43: =IFERROR(F17/F16,0) -> 0.7692307692 | J43: =_xlfn.IFS(I43=0,0,(2/3)*F16*((1+I43+I43^2)/(1+I43)),(2/3)*F16*((1+I43+I43^2)/(1+I43))) -> 115.6521739 | K43: =_xlfn.IFS(I43=0,0,(2*F27-2*F26)/6*(1+2*I43)/(1+I43),(2*F27-2*F26)/6*(1+2*I43)/(1+I43)) -> 52.60869565 | L43: =IFERROR(K43/(F27-F26)*(F22-F21),0) -> 14.34782609 | M43: =_xlfn.IFS(K43=0,0,K43+F26,K43+F26) -> 172.6086957 | N43: =_xlfn.IFS(L43=0,0,L43+F21,L43+F21) -> 34.34782609 | O43: =IFERROR(_xlfn.IFS(IFERROR(F16*(F27-F26)+((F17-F16)/2)*(F27-F26),0)<0,0),IFERROR(F16*(F27-F26)+((F17-F16)/2)*(F27-F26),0)) -> 12650
H44: 3 | I44: =IFERROR(F18/F17,0) -> 0.6 | J44: =_xlfn.IFS(I44=0,0,(2/3)*F17*((1+I44+I44^2)/(1+I44)),(2/3)*F17*((1+I44+I44^2)/(1+I44))) -> 81.66666667 | K44: =_xlfn.IFS(I44=0,0,(2*F28-2*F27)/6*(1+2*I44)/(1+I44),(2*F28-2*F27)/6*(1+2*I44)/(1+I44)) -> 41.25 | L44: =IFERROR(K44/(F28-F27)*(F23-F22),0) -> 18.33333333 | M44: =_xlfn.IFS(K44=0,0,K44+F27,K44+F27) -> 271.25 | N44: =_xlfn.IFS(L44=0,0,L44+F22,L44+F22) -> 68.33333333 | O44: =IFERROR(_xlfn.IFS(IFERROR(F17*(F28-F27)+((F18-F17)/2)*(F28-F27),0)<0,0),IFERROR(F17*(F28-F27)+((F18-F17)/2)*(F28-F27),0)) -> 7200
C45: Zobrazit mezivýpočty? (zadejte "ano") | F45: ano | H45: 4 | I45: =IFERROR(F19/F18,0) -> 0.3333333333 | J45: =_xlfn.IFS(I45=0,0,(2/3)*F18*((1+I45+I45^2)/(1+I45)),(2/3)*F18*((1+I45+I45^2)/(1+I45))) -> 43.33333333 | K45: =_xlfn.IFS(I45=0,0,(2*F29-2*F28)/6*(1+2*I45)/(1+I45),(2*F29-2*F28)/6*(1+2*I45)/(1+I45)) -> 20.83333333 | L45: =IFERROR(K45/(F29-F28)*(F24-F23),0) -> 16.66666667 | M45: =_xlfn.IFS(K45=0,0,K45+F28,K45+F28) -> 340.8333333 | N45: =_xlfn.IFS(L45=0,0,L45+F23,L45+F23) -> 106.6666667 | O45: =IFERROR(_xlfn.IFS(IFERROR(F18*(F29-F28)+((F19-F18)/2)*(F29-F28),0)<0,0),IFERROR(F18*(F29-F28)+((F19-F18)/2)*(F29-F28),0)) -> 2000
C46: (nezobrazuje pro elipsu)

Sheet Obecná metoda
B2: PROGRAM PRO STANOVENÍ STŘEDNÍ AERODYNAMICKÉ TĚTIVY KŘÍDLA OBECNÉHO PŮDORYSU
C5: SOUŘADNICE KŘÍDLA | G5: PLOŠNÉ ROZDĚLENÍ | J5: MEZIVÝPOČET
C6: z | D6: x1 | E6: x2 | G6: z | H6: x=x1-x2 | J6: Hloubka b(x) | K6: chyba
C7: 0 | D7: 0 | E7: 150 | G7: =IF(COUNT(C7)=1,C7,#N/A) -> 0 | H7: =IF(COUNT(D7:E7)=2,ABS(D7-E7),#N/A) -> 150 | J7: =1.76690517130399E-14*G7^6 - 6.37624894493627E-11*G7^5 + 4.21256178533697E-08*G7^4 - 0.0000119472828554734*G7^3 + 0.00113437686039219*G7^2 - 0.19893471020805*G7 + 150.128777249476 -> 150.1287772 | K7: =IFERROR(ABS((H7-J7)/J7),"") -> 0.0008577785807 | M7: KONTROLA POUŽITÉ REGRESE | S7: 0,000000000000017669051713039900*G7^6 - 0,000000000063762489449362700000*G7^5 + 0,000000042125617853369700000000*G7^4 - 0,000011947282855473400000000000*G7^3 + 0,001134376860392190000000000000*G7^2 - 0,198934710208050000000000000000*G7 + 150,128777249476000000000000000000
C8: 10 | D8: 1.666666667 | E8: 150 | G8: =IF(COUNT(C8)=1,C8,#N/A) -> 10 | H8: =IF(COUNT(D8:E8)=2,ABS(D8-E8),#N/A) -> 148.3333333 | J8: =1.76690517130399E-14*G8^6 - 6.37624894493627E-11*G8^5 + 4.21256178533697E-08*G8^4 - 0.0000119472828554734*G8^3 + 0.00113437686039219*G8^2 - 0.19893471020805*G8 + 150.128777249476 -> 148.2413354 | K8: =IFERROR(ABS((H8-J8)/J8),"") -> 0.0006205953615
C9: 20 | D9: 3.333333333 | E9: 150 | G9: 20 | H9: 146.6666667 | J9: 146.5147927 | K9: 0.001036577587 | M9: Do bílého pole zadejte maximální procentuální chybu regrese, kterou jste ochotni připustit.
C10: 30 | D10: 5 | E10: 150 | G10: 30 | H10: 145 | J10: 144.8916837 | K10: 0.0007475675211
C11: 40 | D11: 6.666666667 | E11: 150 | G11: 40 | H11: 143.3333333 | J11: 143.3231504 | K11: 7.104883652e-05
C12: 50 | D12: 8.333333333 | E12: 150 | G12: 50 | H12: 141.6666667 | J12: 141.7682089 | K12: 0.0007162556385 | M12: Tolerovaná hodnota chyby | O12: 0.04
C13: 60 | D13: 10 | E13: 150 | G13: 60 | H13: 140 | J13: 140.1930289 | K13: 0.00137687945 | M13: Maximální dosažená chyba | O13: =MAX(K7:K2007) -> 0.03660954687
C14: 70 | D14: 11.66666667 | E14: 150 | G14: 70 | H14: 138.3333333 | J14: 138.5702253 | K14: 0.001709544835
C15: 80 | D15: 13.33333333 | E15: 150 | G15: 80 | H15: 136.6666667 | J15: 136.8781637 | K15: 0.001545148347 | M15: =_xlfn.IFS(O13<O12,"Použili jste vhodnou regresi, výpočet dosahuje maximálně vámi tolerovanou chybu.",O13>O12,"Nepřesný výsledek. Změňte řád polynomu regrese nebo vytvořte hustší síť souřadnic definujících profil křídla.",O13=O12,"Použili jste vhodnou regresi, výpočet dosahuje maximálně vámi tolerovanou chybu.") -> Použili jste vhodnou regresi, výpočet dosahuje maximálně vámi tolerovanou chybu.
C16: 90 | D16: 15 | E16: 150 | G16: 90 | H16: 135 | J16: 135.1002774 | K16: 0.0007422443693
C17: 100 | D17: 16.66666667 | E17: 150 | G17: 100 | H17: 133.3333333 | J17: 133.2243979 | K17: 0.0008176836627
C18: 110 | D18: 18.33333333 | E18: 150 | G18: 110 | H18: 131.6666667 | J18: 131.2420979 | K18: 0.003235004414
C19: 120 | D19: 20 | E19: 150 | G19: 120 | H19: 130 | J19: 129.1480469 | K19: 0.00659671698
C20: 130 | D20: 22.72727273 | E20: 150 | G20: 130 | H20: 127.2727273 | J20: 126.9393797 | K20: 0.002626037645 | M20: VÝPOČET STŘEDNÍ AERODYNAMICKÉ HLOUBKY bSAT
C21: 140 | D21: 25.45454545 | E21: 150 | G21: 140 | H21: 124.5454545 | J21: 124.6150775 | K21: 0.0005587043518
C22: 150 | D22: 28.18181818 | E22: 150 | G22: 150 | H22: 121.8181818 | J22: 122.175362 | K22: 0.002923504001
C23: 160 | D23: 30.90909091 | E23: 150 | G23: 160 | H23: 119.0909091 | J23: 119.6211015 | K23: 0.004432264614
C24: 170 | D24: 33.63636364 | E24: 150 | G24: 170 | H24: 116.3636364 | J24: 116.9532307 | K24: 0.005041282635
C25: 180 | D25: 36.36363636 | E25: 150 | G25: 180 | H25: 113.6363636 | J25: 114.1721825 | K25: 0.004693076753
C26: 190 | D26: 39.09090909 | E26: 150 | G26: 190 | H26: 110.9090909 | J26: 111.2773328 | K26: 0.003309226208 | O26: =1.76690517130399E-14*Z1^6 - 6.37624894493627E-11*Z1^5 + 4.21256178533697E-08*Z1^4 - 0.0000119472828554734*Z1^3 + 0.00113437686039219*Z1^2 - 0.19893471020805*Z1 + 150.128777249476 -> 150.1287772 | S26: 0,000000000000017669051713039900*z1^6 - 0,000000000063762489449362700000*z1^5 + 0,000000042125617853369700000000*z1^4 - 0,000011947282855473400000000000*z1^3 + 0,001134376860392190000000000000*z1^2 - 0,198934710208050000000000000000*z1 + 150,128777249476000000000000000000
C27: 200 | D27: 41.81818182 | E27: 150 | G27: 200 | H27: 108.1818182 | J27: 108.266458 | K27: 0.0007817735125
C28: 210 | D28: 44.54545455 | E28: 150 | G28: 210 | H28: 105.4545455 | J28: 105.1352053 | K28: 0.003037423446 | O28: =-1.76690517924492E-14*Z1^6 + 6.37624895306779E-11*Z1^5 - 4.21256178932683E-08*Z1^4 + 0.0000119472828785661*Z1^3 - 0.00113437687042506*Z1^2 + 0.198934711790571*Z1 - 0.128777450416237 -> -0.1287774504 | S28: -0,000000000000017669051792449200*z1^6 + 0,000000000063762489530677900000*z1^5 - 0,000000042125617893268300000000*z1^4 + 0,000011947282878566100000000000*z1^3 - 0,001134376870425060000000000000*z1^2 + 0,198934711790571000000000000000*z1 - 0,128777450416237000000000000000
C29: 220 | D29: 47.27272727 | E29: 150 | G29: 220 | H29: 102.7272727 | J29: 101.8765753 | K29: 0.008350274632 | S29: -0,000000000000017669051792449200*G7^6 + 0,000000000063762489530677900000*G7^5 - 0,000000042125617893268300000000*G7^4 + 0,000011947282878566100000000000*G7^3 - 0,001134376870425060000000000000*G7^2 + 0,198934711790571000000000000000*G7 - 0,128777450416237000000000000000
C30: 230 | D30: 50 | E30: 150 | G30: 230 | H30: 100 | J30: 98.48041809 | K30: 0.01543029511 | L30: NEMÁTE K DISPOZICI FUNKCI QADF(), PŘEJDĚTE NA LIST "INTEGRACE".
C31: 240 | D31: 54.44444444 | E31: 150 | G31: 240 | H31: 95.55555556 | J31: 94.93294114 | K31: 0.006558465463
C32: 250 | D32: 58.88888889 | E32: 150 | G32: 250 | H32: 91.11111111 | J32: 91.21623082 | K32: 0.001152423295 | M32: Horní mez integrálů (= polovině rozpětí) | O32: =MAX(C7:C121) -> 370
C33: 260 | D33: 63.33333333 | E33: 150 | G33: 260 | H33: 86.66666667 | J33: 87.30778597 | K33: 0.007343208795 | M33: Plocha křídla (získaná integrací b(z)) | O33: =QUADF(O26,Z1,0,O32) -> 
C34: 270 | D34: 67.77777778 | E34: 150 | G34: 270 | H34: 82.22222222 | J34: 83.18006448 | K34: 0.01151528634
C35: 280 | D35: 72.22222222 | E35: 150 | G35: 280 | H35: 77.77777778 | J35: 78.80004257 | K35: 0.01297289651 | M35: Střední aerodynamická hloubka | O35: =IFERROR(2/O33*O41/2, "list Integrace") -> list Integrace
C36: 290 | D36: 76.66666667 | E36: 150 | G36: 290 | H36: 73.33333333 | J36: 74.12878674 | K36: 0.01073069512 | M36: Poloha SAT na rozpětí | O36: =IFERROR(2/O33*O42/2,"list Integrace") -> list Integrace
C37: 300 | D37: 81.11111111 | E37: 150 | G37: 300 | H37: 68.88888889 | J37: 69.12103847 | K37: 0.003358595154 | M37: Vzdálenost náběžné hrany | O37: =IFERROR(2/O33*O43/2,"list Integrace") -> list Integrace
C38: 310 | D38: 85.55555556 | E38: 150 | G38: 310 | H38: 64.44444444 | J38: 63.72481165 | K38: 0.01129281942
C39: 320 | D39: 90 | E39: 150 | G39: 320 | H39: 60 | J39: 57.88100272 | K39: 0.03660954687 | M39: Zobrazit mezivýpočty? (vepište "ano") | O39: ano
C40: 330 | D40: 98 | E40: 150 | G40: 330 | H40: 52 | J40: 51.52301351 | K40: 0.009257736693
C41: 340 | D41: 106 | E41: 150 | G41: 340 | H41: 44 | J41: 44.57638686 | K41: 0.01293031796 | M41: Integrál z b(z)^2 | O41: =QUADF(O26^2,Z1,0,O32) -> 
C42: 350 | D42: 114 | E42: 150 | G42: 350 | H42: 36 | J42: 36.95845489 | K42: 0.0259333053 | M42: Integrál z b(z)*z | O42: =QUADF(O26*Z1,Z1,0,O32) -> 
C43: 360 | D43: 122 | E43: 150 | G43: 360 | H43: 28 | J43: 28.57800008 | K43: 0.02022535088 | M43: Integrál z b(z)*x(z) | O43: =QUADF(O26*O28,Z1,0,O32) -> 
C44: 370 | D44: 130 | E44: 150 | G44: 370 | H44: 20 | J44: 19.33492894 | K44: 0.03439738827
G72: =IF(COUNT(C72)=1,C72,#N/A) ->  | H72: =IF(COUNT(D72:E72)=2,ABS(D72-E72),#N/A) -> 
K73: =IFERROR(ABS((H73-J73)/J73),"") -> 
G136: =IF(COUNT(C136)=1,C136,#N/A) ->  | H136: =IF(COUNT(D136:E136)=2,ABS(D136-E136),#N/A) -> 
K137: =IFERROR(ABS((H137-J137)/J137),"") -> 
G200: =IF(COUNT(C200)=1,C200,#N/A) ->  | H200: =IF(COUNT(D200:E200)=2,ABS(D200-E200),#N/A) -> 
K201: =IFERROR(ABS((H201-J201)/J201),"") -> 
G264: =IF(COUNT(C264)=1,C264,#N/A) ->  | H264: =IF(COUNT(D264:E264)=2,ABS(D264-E264),#N/A) -> 
K265: =IFERROR(ABS((H265-J265)/J265),"") -> 
G328: =IF(COUNT(C328)=1,C328,#N/A) ->  | H328: =IF(COUNT(D328:E328)=2,ABS(D328-E328),#N/A) -> 
K329: =IFERROR(ABS((H329-J329)/J329),"") -> 
G392: =IF(COUNT(C392)=1,C392,#N/A) ->  | H392: =IF(COUNT(D392:E392)=2,ABS(D392-E392),#N/A) -> 
K393: =IFERROR(ABS((H393-J393)/J393),"") -> 
G456: =IF(COUNT(C456)=1,C456,#N/A) ->  | H456: =IF(COUNT(D456:E456)=2,ABS(D456-E456),#N/A) -> 
K457: =IFERROR(ABS((H457-J457)/J457),"") -> 
G520: =IF(COUNT(C520)=1,C520,#N/A) ->  | H520: =IF(COUNT(D520:E520)=2,ABS(D520-E520),#N/A) -> 
K521: =IFERROR(ABS((H521-J521)/J521),"") -> 
G584: =IF(COUNT(C584)=1,C584,#N/A) ->  | H584: =IF(COUNT(D584:E584)=2,ABS(D584-E584),#N/A) -> 
K585: =IFERROR(ABS((H585-J585)/J585),"") -> 
G648: =IF(COUNT(C648)=1,C648,#N/A) ->  | H648: =IF(COUNT(D648:E648)=2,ABS(D648-E648),#N/A) -> 
K649: =IFERROR(ABS((H649-J649)/J649),"") -> 
G712: =IF(COUNT(C712)=1,C712,#N/A) ->  | H712: =IF(COUNT(D712:E712)=2,ABS(D712-E712),#N/A) -> 
K713: =IFERROR(ABS((H713-J713)/J713),"") -> 
G776: =IF(COUNT(C776)=1,C776,#N/A) ->  | H776: =IF(COUNT(D776:E776)=2,ABS(D776-E776),#N/A) -> 
K777: =IFERROR(ABS((H777-J777)/J777),"") -> 
G840: =IF(COUNT(C840)=1,C840,#N/A) ->  | H840: =IF(COUNT(D840:E840)=2,ABS(D840-E840),#N/A) -> 
K841: =IFERROR(ABS((H841-J841)/J841),"") -> 
G904: =IF(COUNT(C904)=1,C904,#N/A) ->  | H904: =IF(COUNT(D904:E904)=2,ABS(D904-E904),#N/A) -> 
K905: =IFERROR(ABS((H905-J905)/J905),"") -> 
G968: =IF(COUNT(C968)=1,C968,#N/A) ->  | H968: =IF(COUNT(D968:E968)=2,ABS(D968-E968),#N/A) -> 
K969: =IFERROR(ABS((H969-J969)/J969),"") -> 
G1032: =IF(COUNT(C1032)=1,C1032,#N/A) ->  | H1032: =IF(COUNT(D1032:E1032)=2,ABS(D1032-E1032),#N/A) -> 
K1033: =IFERROR(ABS((H1033-J1033)/J1033),"") -> 
G1096: =IF(COUNT(C1096)=1,C1096,#N/A) ->  | H1096: =IF(COUNT(D1096:E1096)=2,ABS(D1096-E1096),#N/A) -> 
K1097: =IFERROR(ABS((H1097-J1097)/J1097),"") -> 
G1160: =IF(COUNT(C1160)=1,C1160,#N/A) ->  | H1160: =IF(COUNT(D1160:E1160)=2,ABS(D1160-E1160),#N/A) -> 
K1161: =IFERROR(ABS((H1161-J1161)/J1161),"") -> 
G1224: =IF(COUNT(C1224)=1,C1224,#N/A) ->  | H1224: =IF(COUNT(D1224:E1224)=2,ABS(D1224-E1224),#N/A) -> 
K1225: =IFERROR(ABS((H1225-J1225)/J1225),"") -> 
G1288: =IF(COUNT(C1288)=1,C1288,#N/A) ->  | H1288: =IF(COUNT(D1288:E1288)=2,ABS(D1288-E1288),#N/A) -> 
K1289: =IFERROR(ABS((H1289-J1289)/J1289),"") -> 
G1352: =IF(COUNT(C1352)=1,C1352,#N/A) ->  | H1352: =IF(COUNT(D1352:E1352)=2,ABS(D1352-E1352),#N/A) -> 
K1353: =IFERROR(ABS((H1353-J1353)/J1353),"") -> 
G1416: =IF(COUNT(C1416)=1,C1416,#N/A) ->  | H1416: =IF(COUNT(D1416:E1416)=2,ABS(D1416-E1416),#N/A) -> 
K1417: =IFERROR(ABS((H1417-J1417)/J1417),"") -> 
G1480: =IF(COUNT(C1480)=1,C1480,#N/A) ->  | H1480: =IF(COUNT(D1480:E1480)=2,ABS(D1480-E1480),#N/A) -> 
K1481: =IFERROR(ABS((H1481-J1481)/J1481),"") -> 
G1544: =IF(COUNT(C1544)=1,C1544,#N/A) ->  | H1544: =IF(COUNT(D1544:E1544)=2,ABS(D1544-E1544),#N/A) -> 
K1545: =IFERROR(ABS((H1545-J1545)/J1545),"") -> 
G1608: =IF(COUNT(C1608)=1,C1608,#N/A) ->  | H1608: =IF(COUNT(D1608:E1608)=2,ABS(D1608-E1608),#N/A) -> 
K1609: =IFERROR(ABS((H1609-J1609)/J1609),"") -> 
G1672: =IF(COUNT(C1672)=1,C1672,#N/A) ->  | H1672: =IF(COUNT(D1672:E1672)=2,ABS(D1672-E1672),#N/A) -> 
K1673: =IFERROR(ABS((H1673-J1673)/J1673),"") -> 
G1736: =IF(COUNT(C1736)=1,C1736,#N/A) ->  | H1736: =IF(COUNT(D1736:E1736)=2,ABS(D1736-E1736),#N/A) -> 
K1737: =IFERROR(ABS((H1737-J1737)/J1737),"") -> 
G1800: =IF(COUNT(C1800)=1,C1800,#N/A) ->  | H1800: =IF(COUNT(D1800:E1800)=2,ABS(D1800-E1800),#N/A) -> 
K1801: =IFERROR(ABS((H1801-J1801)/J1801),"") -> 
G1864: =IF(COUNT(C1864)=1,C1864,#N/A) ->  | H1864: =IF(COUNT(D1864:E1864)=2,ABS(D1864-E1864),#N/A) -> 
K1865: =IFERROR(ABS((H1865-J1865)/J1865),"") -> 
G1928: =IF(COUNT(C1928)=1,C1928,#N/A) ->  | H1928: =IF(COUNT(D1928:E1928)=2,ABS(D1928-E1928),#N/A) -> 
K1929: =IFERROR(ABS((H1929-J1929)/J1929),"") -> 
G1992: =IF(COUNT(C1992)=1,C1992,#N/A) ->  | H1992: =IF(COUNT(D1992:E1992)=2,ABS(D1992-E1992),#N/A) -> 
K1993: =IFERROR(ABS((H1993-J1993)/J1993),"") -> 

Sheet Integrace
B2: ALTERNATIVNÍ VÝPOČET INTEGRÁLŮ PRO ZÍSKÁNÍ STŘEDNÍ AERODYNAMICKÉ TĚTIVY
G4: dz | H4: b(z) | I4: b(z)^2 | J4: b(z)*z | K4: x(z) | L4: b(z)*x(z) | M4: nosná plocha | N4: bsat' | O4: zsat' | P4: xsat'
G5: 1 | R5: VÝSLEDNÉ HODNOTY
G7: 0 | H7: =1.76690517130399E-14*G7^6 - 6.37624894493627E-11*G7^5 + 4.21256178533697E-08*G7^4 - 0.0000119472828554734*G7^3 + 0.00113437686039219*G7^2 - 0.19893471020805*G7 + 150.128777249476 -> 150.1287772 | I7: =H7^2 -> 22538.64976 | J7: =H7*G7 -> 0 | K7: =-1.76690517924492E-14*G7^6 + 6.37624895306779E-11*G7^5 - 4.21256178932683E-08*G7^4 + 0.0000119472828785661*G7^3 - 0.00113437687042506*G7^2 + 0.198934711790571*G7 - 0.128777450416237 -> -0.1287774504 | L7: =H7*K7 -> -19.33320117 | M7: 0 | N7: 0 | O7: 0 | P7: 0 | R7: Střední aerodynamická hloubka | T7: =2/MAX(M7:M2007)*(MAX(N7:N2007)-N7)/2 -> 116.2543005
G8: =G7+G$5 -> 1 | H8: =1.76690517130399E-14*G8^6 - 6.37624894493627E-11*G8^5 + 4.21256178533697E-08*G8^4 - 0.0000119472828554734*G8^3 + 0.00113437686039219*G8^2 - 0.19893471020805*G8 + 150.128777249476 -> 149.930965 | I8: =H8^2 -> 22479.29427 | J8: =H8*G8 -> 149.930965 | K8: =-1.76690517924492E-14*G8^6 + 6.37624895306779E-11*G8^5 - 4.21256178932683E-08*G8^4 + 0.0000119472828785661*G8^3 - 0.00113437687042506*G8^2 + 0.198934711790571*G8 - 0.128777450416237 -> 0.06903478972 | L8: =H8*K8 -> 10.35045264 | M8: =M7+0.5*(H8+H7)*G$5 -> 150.0298711 | N8: =N7+0.5*(I8+I7)*G$5 -> 22508.97201 | O8: =O7+0.5*(J8+J7)*G$5 -> 74.96548251 | P8: =P7+0.5*(L8+L7)*G$5 -> -4.491374263 | R8: Poloha SAT na rozpětí | T8: =2/MAX(M7:M2007)*(MAX(O7:O2007)-O7)/2 -> 150.1659318
G9: =G8+G$5 -> 2 | H9: 149.7353504 | I9: 22420.67517 | J9: 299.4707009 | K9: 0.264649372 | L9: 39.62736645 | M9: =M8+0.5*(H9+H8)*G$5 -> 299.8630289 | N9: =N8+0.5*(I9+I8)*G$5 -> 44958.95673 | O9: =O8+0.5*(J9+J8)*G$5 -> 299.6663154 | P9: =P8+0.5*(L9+L8)*G$5 -> 20.49753529 | R9: Vzdálenost náběžné hrany | T9: =2/MAX(M7:M2007)*(MAX(P7:P2007)-P7)/2 -> 33.74569935
G10: 3 | H10: 149.5418633 | I10: 22362.76889 | J10: 448.62559 | K10: 0.4581364731 | L10: 68.51058184 | M10: 449.5016357 | N10: 67350.67876 | O10: 673.7144609 | P10: 74.56650943
G11: 4 | H11: 149.3504345 | I11: 22305.55229 | J11: 597.4017381 | K11: 0.649565274 | L11: 97.01285593 | M11: 598.9477847 | N11: 89684.83935 | O11: 1196.728125 | P11: 157.3282283
G12: 5 | H12: 149.1609958 | I12: 22249.00268 | J12: 745.8049792 | K12: 0.8390039676 | L12: 125.1466673 | M12: 748.2034998 | N12: 111962.1168 | O12: 1868.331484 | P12: 268.4079899
G13: 6 | H13: 148.97348 | I13: 22193.09776 | J13: 893.8408803 | K13: 1.026519766 | L13: 152.9242219 | M13: 897.2707378 | N13: 134183.1671 | O13: 2688.154413 | P13: 407.4434346
G14: 7 | H14: 148.7878209 | I14: 22137.81565 | J14: 1041.514746 | K14: 1.212178909 | L14: 180.3574585 | M14: 1046.151388 | N14: 156348.6238 | O14: 3655.832227 | P14: 574.0842748 | AE14: F(z)
G15: 8 | H15: 148.6039531 | I15: 22083.13489 | J15: 1188.831625 | K15: 1.396046671 | L15: 207.4580541 | M15: 1194.847275 | N15: 178459.099 | O15: 4771.005412 | P15: 767.9920311
G16: 9 | H16: 148.4218124 | I16: 22029.03441 | J16: 1335.796312 | K16: 1.578187368 | L16: 234.2374295 | M16: 1343.360158 | N16: 200515.1837 | O16: 6033.319381 | P16: 988.8397729 | AE16: F(0)
G17: 10 | H17: 148.2413354 | I17: 21975.49354 | J17: 1482.413354 | K17: 1.758664366 | L17: 260.7067542 | M17: 1491.691732 | N17: 222517.4476 | O17: 7442.424214 | P17: 1236.311865 | AE17: F(0)+0,5*(f(0)+F(0))*k
G18: 11 | H18: 148.0624597 | I18: 21922.49198 | J18: 1628.687057 | K18: 1.937540088 | L18: 286.8769513 | M18: 1639.84363 | N18: 244466.4404 | O18: 8997.97442 | P18: 1510.103717
G19: 12 | H19: 147.8851238 | I19: 21870.00984 | J19: 1774.621486 | K19: 2.114876023 | L19: 312.7587025 | M19: 1787.817421 | N19: 266362.6913 | O19: 10699.62869 | P19: 1809.921544
G20: 13 | H20: 147.7092671 | I20: 21818.02758 | J20: 1920.220472 | K20: 2.290732732 | L20: 338.3624529 | M20: 1935.614617 | N20: 288206.71 | O20: 12547.04967 | P20: 2135.482122
G21: 14 | H21: 147.53483 | I21: 21766.52605 | J21: 2065.48762 | K21: 2.465169854 | L21: 363.6984153 | M21: 2083.236665 | N21: 309998.9868 | O21: 14539.90372 | P21: 2486.512556
G22: 15 | H22: 147.3617537 | I22: 21715.48645 | J22: 2210.426306 | K22: 2.638246119 | L22: 388.7765748 | M22: 2230.684957 | N22: 331739.9931 | O22: 16677.86068 | P22: 2862.750051
G23: 16 | H23: 147.1899805 | I23: 21664.89035 | J23: 2355.039688 | K23: 2.810019349 | L23: 413.6066931 | M23: 2377.960824 | N23: 353430.1815 | O23: 18960.59367 | P23: 3263.941685
G24: 17 | H24: 147.0194534 | I24: 21614.71966 | J24: 2499.330707 | K24: 2.980546469 | L24: 438.1983125 | M24: 2525.065541 | N24: 375069.9865 | O24: 21387.77887 | P24: 3689.844188
G25: 18 | H25: 146.8501163 | I25: 21564.95666 | J25: 2643.302094 | K25: 3.149883513 | L25: 462.5607603 | M25: 2672.000326 | N25: 396659.8247 | O25: 23959.09527 | P25: 4140.223724
G26: 19 | H26: 146.6819142 | I26: 21515.58395 | J26: 2786.95637 | K26: 3.318085635 | L26: 486.7031524 | M26: 2818.766341 | N26: 418200.095 | O26: 26674.2245 | P26: 4614.855681
G27: 20 | H27: 146.5147927 | I27: 21466.58448 | J27: 2930.295854 | K27: 3.485207111 | L27: 510.6343974 | M27: 2965.364695 | N27: 439691.1792 | O27: 29532.85062 | P27: 5113.524456
G28: 21 | H28: 146.3486985 | I28: 21417.94155 | J28: 3073.322668 | K28: 3.651301349 | L28: 534.3632002 | M28: 3111.79644 | N28: 461133.4422 | O28: 32534.65988 | P28: 5636.023254
G29: 22 | H29: 146.1835789 | I29: 21369.63875 | J29: 3216.038736 | K29: 3.816420898 | L29: 557.8980656 | M29: 3258.062579 | N29: 482527.2324 | O29: 35679.34058 | P29: 6182.153887
G30: 23 | H30: 146.0193824 | I30: 21321.66003 | J30: 3358.445795 | K30: 3.980617454 | L30: 581.2473021 | M30: 3404.16406 | N30: 503872.8817 | O30: 38966.58285 | P30: 6751.726571
G31: 24 | H31: 145.856058 | I31: 21273.98965 | J31: 3500.545391 | K31: 4.143941865 | L31: 604.4190248 | M31: 3550.10178 | N31: 525170.7066 | O31: 42396.07844 | P31: 7344.559735
G32: 25 | H32: 145.6935557 | I32: 21226.61217 | J32: 3642.338892 | K32: 4.306444143 | L32: 627.4211595 | M32: 3695.876587 | N32: 546421.0075 | O32: 45967.52058 | P32: 7960.479827
G33: 26 | H33: 145.5318264 | I33: 21179.51249 | J33: 3783.827486 | K33: 4.468173467 | L33: 650.2614452 | M33: 3841.489278 | N33: 567624.0698 | O33: 49680.60377 | P33: 8599.321129
G34: 27 | H34: 145.3708216 | I34: 21132.67578 | J34: 3925.012184 | K34: 4.629178194 | L34: 672.9474376 | M34: 3986.940602 | N34: 588780.164 | O34: 53535.0236 | P34: 9260.92557
G35: 28 | H35: 145.210494 | I35: 21086.08756 | J35: 4065.893831 | K35: 4.789505865 | L35: 695.4865125 | M35: 4132.231259 | N35: 609889.5456 | O35: 57530.47661 | P35: 9945.142546
G36: 29 | H36: 145.0507966 | I36: 21039.7336 | J36: 4206.473102 | K36: 4.949203208 | L36: 717.8858681 | M36: 4277.361905 | N36: 630952.4562 | O36: 61666.66008 | P36: 10651.82874
G37: 30 | H37: 144.8916837 | I37: 20993.6 | J37: 4346.75051 | K37: 5.108316155 | L37: 740.1525285 | M37: 4422.333145 | N37: 651969.123 | O37: 65943.27188 | P37: 11380.84793
G38: 31 | H38: 144.73311 | I38: 20947.67313 | J38: 4486.72641 | K38: 5.266889839 | L38: 762.2933464 | M38: 4567.145542 | N38: 672939.7596 | O38: 70360.01034 | P38: 12132.07087
G39: 32 | H39: 144.5750312 | I39: 20901.93966 | J39: 4626.400999 | K39: 5.424968607 | L39: 784.3150058 | M39: 4711.799612 | N39: 693864.566 | O39: 74916.57405 | P39: 12905.37505
G40: 33 | H40: 144.4174038 | I40: 20856.38652 | J40: 4765.774326 | K40: 5.582596028 | L40: 806.2240249 | M40: 4856.29583 | N40: 714743.7291 | O40: 79612.66171 | P40: 13700.64456
G41: 34 | H41: 144.2601849 | I41: 20811.00096 | J41: 4904.846288 | K41: 5.739814895 | L41: 828.0267584 | M41: 5000.634624 | N41: 735577.4228 | O41: 84447.97202 | P41: 14517.76995
G42: 35 | H42: 144.1033326 | I42: 20765.77047 | J42: 5043.616641 | K42: 5.896667239 | L42: 849.7294004 | M42: 5144.816383 | N42: 756365.8085 | O42: 89422.20348 | P42: 15356.64803
G43: 36 | H43: 143.9468055 | I43: 20720.68282 | J43: 5182.084998 | K43: 6.05319433 | L43: 871.337987 | M43: 5288.841452 | N43: 777109.0352 | O43: 94535.0543 | P43: 16217.18173
G44: 37 | H44: 143.7905632 | I44: 20675.72605 | J44: 5320.250837 | K44: 6.209436689 | L44: 892.8583984 | M44: 5432.710136 | N44: 797807.2396 | O44: 99786.22222 | P44: 17099.27992
G45: 38 | H45: 143.6345658 | I45: 20630.88848 | J45: 5458.113499 | K45: 6.365434092 | L45: 914.2963616 | M45: 5576.422701 | N45: 818460.5469 | O45: 105175.4044 | P45: 18002.8573
G46: 39 | H46: 143.4787743 | I46: 20586.15867 | J46: 5595.672196 | K46: 6.521225578 | L46: 935.6574526 | M46: 5719.979371 | N46: 839069.0704 | O46: 110702.2972 | P46: 18927.83421
G47: 40 | H47: 143.3231504 | I47: 20541.52544 | J47: 5732.926016 | K47: 6.676849457 | L47: 956.9470989 | M47: 5863.380333 | N47: 859632.9125 | O47: 116366.5963 | P47: 19874.13648
G48: 41 | H48: 143.1676565 | I48: 20496.97788 | J48: 5869.873918 | K48: 6.832343319 | L48: 978.1705816 | M48: 6006.625737 | N48: 880152.1641 | O48: 122167.9963 | P48: 20841.69532
G49: 42 | H49: 143.0122558 | I49: 20452.50531 | J49: 6006.514744 | K49: 6.987744035 | L49: 999.3330375 | M49: 6149.715693 | N49: 900626.9057 | O49: 128106.1906 | P49: 21830.44713
G50: 43 | H50: 142.8569121 | I50: 20408.09733 | J50: 6142.847219 | K50: 7.14308777 | L50: 1020.439462 | M50: 6292.650277 | N50: 921057.2071 | O50: 134180.8716 | P50: 22840.33338
G51: 44 | H51: 142.7015899 | I51: 20363.74375 | J51: 6278.869954 | K51: 7.298409989 | L51: 1041.494709 | M51: 6435.429528 | N51: 941443.1276 | O51: 140391.7302 | P51: 23871.30047
G52: 45 | H52: 142.5462544 | I52: 20319.43464 | J52: 6414.581448 | K52: 7.453745461 | L52: 1062.503497 | M52: 6578.05345 | N52: 961784.7168 | O52: 146738.4559 | P52: 24923.29957
G53: 46 | H53: 142.3908716 | I53: 20275.16031 | J53: 6549.980093 | K53: 7.60912827 | L53: 1083.470406 | M53: 6720.522013 | N53: 982082.0143 | O53: 153220.7367 | P53: 25996.28652
G54: 47 | H54: 142.235408 | I54: 20230.9113 | J54: 6685.064178 | K54: 7.76459182 | L54: 1104.399886 | M54: 6862.835153 | N54: 1002335.05 | O54: 159838.2588 | P54: 27090.22167
G55: 48 | H55: 142.079831 | I55: 20186.67838 | J55: 6819.831889 | K55: 7.920168843 | L55: 1125.296251 | M55: 7004.992772 | N55: 1022543.845 | O55: 166590.7068 | P55: 28205.06974
G56: 49 | H56: 141.9241085 | I56: 20142.45256 | J56: 6954.281314 | K56: 8.075891403 | L56: 1146.163687 | M56: 7146.994742 | N56: 1042708.41 | O56: 173477.7634 | P56: 29340.79971
G57: 50 | H57: 141.7682089 | I57: 20098.22507 | J57: 7088.410447 | K57: 8.23179091 | L57: 1167.006254 | M57: 7288.840901 | N57: 1062828.749 | O57: 180499.1093 | P57: 30497.38468
G58: 51 | H58: 141.6121017 | I58: 20053.98736 | J58: 7222.217189 | K58: 8.387898119 | L58: 1187.827882 | M58: 7430.531056 | N58: 1082904.855 | O58: 187654.4231 | P58: 31674.80174
G59: 52 | H59: 141.4557567 | I59: 20009.73111 | J59: 7355.699349 | K59: 8.544243142 | L59: 1208.632379 | M59: 7572.064985 | N59: 1102936.715 | O59: 194943.3814 | P59: 32873.03187
G60: 53 | H60: 141.2991444 | I60: 19965.44821 | J60: 7488.854653 | K60: 8.700855453 | L60: 1229.423431 | M60: 7713.442436 | N60: 1122924.304 | O60: 202365.6584 | P60: 34092.05978
G61: 54 | H61: 141.142236 | I61: 19921.13077 | J61: 7621.680742 | K61: 8.857763898 | L61: 1250.204602 | M61: 7854.663126 | N61: 1142867.594 | O61: 209920.9261 | P61: 35331.8738
G62: 55 | H62: 140.9850032 | I62: 19876.77112 | J62: 7754.175174 | K62: 9.014996696 | L62: 1270.979338 | M62: 7995.726746 | N62: 1162766.545 | O62: 217608.8541 | P62: 36592.46577
G63: 56 | H63: 140.8274184 | I63: 19832.36178 | J63: 7886.335431 | K63: 9.172581452 | L63: 1291.750966 | M63: 8136.632956 | N63: 1182621.111 | O63: 225429.1094 | P63: 37873.83092
G64: 57 | H64: 140.6694547 | I64: 19787.89549 | J64: 8018.158918 | K64: 9.330545161 | L64: 1312.5227 | M64: 8277.381393 | N64: 1202431.24 | O64: 233381.3566 | P64: 39175.96775
G65: 58 | H65: 140.5110856 | I65: 19743.36519 | J65: 8149.642967 | K65: 9.488914216 | L65: 1333.297638 | M65: 8417.971663 | N65: 1222196.87 | O65: 241465.2575 | P65: 40498.87792
G66: 59 | H66: 140.3522854 | I66: 19698.76403 | J66: 8280.784841 | K66: 9.647714413 | L66: 1354.078767 | M66: 8558.403349 | N66: 1241917.935 | O66: 249680.4714 | P66: 41842.56612
G67: 60 | H67: 140.1930289 | I67: 19654.08535 | J67: 8411.581734 | K67: 9.806970962 | L67: 1374.868963 | M67: 8698.676006 | N67: 1261594.359 | O67: 258026.6547 | P67: 43207.03999
G68: 61 | H68: 140.0332914 | I68: 19609.32269 | J68: 8542.030774 | K68: 9.966708488 | L68: 1395.670994 | M68: 8838.789166 | N68: 1281226.063 | O68: 266503.4609 | P68: 44592.30997
G69: 62 | H69: 139.8730488 | I69: 19564.46979 | J69: 8672.129027 | K69: 10.12695104 | L69: 1416.487518 | M69: 8978.742336 | N69: 1300812.96 | O69: 275110.5408 | P69: 45998.38922
G70: 63 | H70: 139.7122778 | I70: 19519.52055 | J70: 8801.873498 | K70: 10.28772211 | L70: 1437.321089 | M70: 9118.534999 | N70: 1320354.955 | O70: 283847.5421 | P70: 47425.29353
G71: 64 | H71: 139.5509552 | I71: 19474.46911 | J71: 8931.261136 | K71: 10.44904462 | L71: 1458.174158 | M71: 9258.166616 | N71: 1339851.95 | O71: 292714.1094 | P71: 48873.04115
G72: 65 | H72: =1.76690517130399E-14*G72^6 - 6.37624894493627E-11*G72^5 + 4.21256178533697E-08*G72^4 - 0.0000119472828554734*G72^3 + 0.00113437686039219*G72^2 - 0.19893471020805*G72 + 150.128777249476 -> 139.3890589 | I72: =H72^2 -> 19429.30975 | J72: =H72*G72 -> 9060.288831 | K72: =-1.76690517924492E-14*G72^6 + 6.37624895306779E-11*G72^5 - 4.21256178932683E-08*G72^4 + 0.0000119472828785661*G72^3 - 0.00113437687042506*G72^2 + 0.198934711790571*G72 - 0.128777450416237 -> 10.61094093 | L72: =H72*K72 -> 1479.049071 | M72: 9397.636623 | N72: 1359303.839 | O72: 301709.8844 | P72: 50341.65276
G73: =G72+G$5 -> 66 | H73: 139.226567 | I73: 19384.03696 | J73: 9188.953422 | K73: 10.77343287 | L73: 1499.948073 | M73: =M72+0.5*(H73+H72)*G$5 -> 9536.944436 | N73: =N72+0.5*(I73+I72)*G$5 -> 1378710.513 | O73: =O72+0.5*(J73+J72)*G$5 -> 310834.5055 | P73: =P72+0.5*(L73+L72)*G$5 -> 51831.15134
G74: 67 | H74: 139.0634582 | I74: 19338.64539 | J74: 9317.251697 | K74: 10.93654171 | L74: 1520.87331 | M74: 9676.089448 | N74: 1398071.854 | O74: 320087.6081 | P74: 53341.56203
G75: 68 | H75: 138.8997117 | I75: 19293.1299 | J75: 9445.180393 | K75: 11.10028821 | L75: 1541.826831 | M75: 9815.071033 | N75: 1417387.741 | O75: 329468.8241 | P75: 54872.9121
G76: 69 | H76: 138.7353073 | I76: 19247.48549 | J76: 9572.736203 | K76: 11.26469258 | L76: 1562.810586 | M76: 9953.888543 | N76: 1436658.049 | O76: 338977.7824 | P76: 56425.23081
G77: 70 | H77: 138.5702253 | I77: 19201.70735 | J77: 9699.915774 | K77: 11.42977452 | L77: 1583.826431 | M77: 10092.54131 | N77: 1455882.645 | O77: 348614.1084 | P77: 57998.54932
G78: 71 | H78: 138.4044466 | I78: 19155.79085 | J78: 9826.715712 | K78: 11.59555323 | L78: 1604.876128 | M78: 10231.02865 | N78: 1475061.395 | O78: 358377.4242 | P78: 59592.90059
G79: 72 | H79: 138.2379525 | I79: 19109.73151 | J79: 9953.13258 | K79: 11.76204737 | L79: 1625.961346 | M79: 10369.34984 | N79: 1494194.156 | O79: 368267.3483 | P79: 61208.31933
G80: 73 | H80: 138.0707247 | I80: 19063.52503 | J80: 10079.16291 | K80: 11.92927514 | L80: 1647.083664 | M80: 10507.50418 | N80: 1513280.784 | O80: 378283.4961 | P80: 62844.84184
G81: 74 | H81: 137.9027457 | I81: 19017.16726 | J81: 10204.80318 | K81: 12.09725421 | L81: 1668.24457 | M81: 10645.49092 | N81: 1532321.13 | O81: 388425.4791 | P81: 64502.50595
G82: 75 | H82: 137.7339981 | I82: 18970.65423 | J82: 10330.04986 | K82: 12.26600179 | L82: 1689.445467 | M82: 10783.30929 | N82: 1551315.041 | O82: 398692.9056 | P82: 66181.35097
G83: 76 | H83: 137.5644653 | I83: 18923.98211 | J83: 10454.89936 | K83: 12.4355346 | L83: 1710.687667 | M83: 10920.95852 | N83: 1570262.359 | O83: 409085.3802 | P83: 67881.41754
G84: 77 | H84: 137.394131 | I84: 18877.14723 | J84: 10579.34809 | K84: 12.60586888 | L84: 1731.972401 | M84: 11058.43782 | N84: 1589162.924 | O84: 419602.5039 | P84: 69602.74757
G85: 78 | H85: 137.2229794 | I85: 18830.14609 | J85: 10703.3924 | K85: 12.77702043 | L85: 1753.300812 | M85: 11195.74638 | N85: 1608016.57 | O85: 430243.8742 | P85: 71345.38418
G86: 79 | H86: 137.0509953 | I86: 18782.97532 | J86: 10827.02863 | K86: 12.94900456 | L86: 1774.673963 | M86: 11332.88336 | N86: 1626823.131 | O86: 441009.0847 | P86: 73109.37157
G87: 80 | H87: 136.8781637 | I87: 18735.63171 | J87: 10950.2531 | K87: 13.12183614 | L87: 1796.092835 | M87: 11469.84794 | N87: 1645582.435 | O87: 451897.7256 | P87: 74894.75497
G88: 81 | H88: 136.7044703 | I88: 18688.1122 | J88: 11073.06209 | K88: 13.29552959 | L88: 1817.55833 | M88: 11606.63926 | N88: 1664294.307 | O88: 462909.3832 | P88: 76701.58055
G89: 82 | H89: 136.529901 | I89: 18640.41386 | J89: 11195.45188 | K89: 13.4700989 | L89: 1839.071269 | M89: 11743.25644 | N89: 1682958.57 | O89: 474043.6401 | P89: 78529.89535
G90: 83 | H90: 136.3544423 | I90: 18592.53392 | J90: 11317.41871 | K90: 13.64555762 | L90: 1860.632398 | M90: 11879.69862 | N90: 1701575.043 | O90: 485300.0754 | P90: 80379.74718
G91: 84 | H91: 136.178081 | I91: 18544.46975 | J91: 11438.9588 | K91: 13.82191887 | L91: 1882.242387 | M91: 12015.96488 | N91: 1720143.545 | O91: 496678.2642 | P91: 82251.18457
G92: 85 | H92: 136.0008045 | I92: 18496.21883 | J92: 11560.06838 | K92: 13.99919536 | L92: 1903.901831 | M92: 12152.05432 | N92: 1738663.89 | O92: 508177.7778 | P92: 84144.25668
G93: 86 | H93: 135.8226005 | I93: 18447.77881 | J93: 11680.74364 | K93: 14.17739937 | L93: 1925.611251 | M93: 12287.96602 | N93: 1757135.888 | O93: 519798.1838 | P93: 86059.01322
G94: 87 | H94: 135.6434571 | I94: 18399.14745 | J94: 11800.98077 | K94: 14.3565428 | L94: 1947.371097 | M94: 12423.69905 | N94: 1775559.352 | O94: 531539.046 | P94: 87995.5044
G95: 88 | H95: 135.4633627 | I95: 18350.32265 | J95: 11920.77592 | K95: 14.53663713 | L95: 1969.181749 | M95: 12559.25246 | N95: 1793934.087 | O95: 543399.9243 | P95: 89953.78082
G96: 89 | H96: 135.2823064 | I96: 18301.30243 | J96: 12040.12527 | K96: 14.71769345 | L96: 1991.043515 | M96: 12694.6253 | N96: 1812259.899 | O96: 555380.3749 | P96: 91933.89345
G97: 90 | H97: 135.1002774 | I97: 18252.08496 | J97: 12159.02497 | K97: 14.89972245 | L97: 2012.956637 | M97: 12829.81659 | N97: 1830536.593 | O97: 567479.9501 | P97: 93935.89353
G98: 91 | H98: 134.9172654 | I98: 18202.6685 | J98: 12277.47115 | K98: 15.08273448 | L98: 2034.921291 | M98: 12964.82536 | N98: 1848763.97 | O98: 579698.1981 | P98: 95959.83249
G99: 92 | H99: 134.7332604 | I99: 18153.05146 | J99: 12395.45996 | K99: 15.26673947 | L99: 2056.937585 | M99: 13099.65062 | N99: 1866941.83 | O99: 592034.6637 | P99: 98005.76193
G100: 93 | H100: 134.5482529 | I100: 18103.23235 | J100: 12512.98752 | K100: 15.45174701 | L100: 2079.005565 | M100: 13234.29138 | N100: 1885069.971 | O100: 604488.8874 | P100: 100073.7335
G101: 94 | H101: 134.3622335 | I101: 18053.2098 | J101: 12630.04995 | K101: 15.63776633 | L101: 2101.125212 | M101: 13368.74662 | N101: 1903148.192 | O101: 617060.4061 | P101: 102163.7989
G102: 95 | H102: 134.1751936 | I102: 18002.98258 | J102: 12746.64339 | K102: 15.82480628 | L102: 2123.296446 | M102: 13503.01534 | N102: 1921176.289 | O102: 629748.7528 | P102: 104276.0097
G103: 96 | H103: 133.9871245 | I103: 17952.54953 | J103: 12862.76395 | K103: 16.01287539 | L103: 2145.519128 | M103: 13637.0965 | N103: 1939154.055 | O103: 642553.4565 | P103: 106410.4175
G104: 97 | H104: 133.798018 | I104: 17901.90963 | J104: 12978.40775 | K104: 16.20198183 | L104: 2167.793057 | M104: 13770.98907 | N104: 1957081.284 | O104: 655474.0423 | P104: 108567.0736
G105: 98 | H105: 133.6078664 | I105: 17851.06197 | J105: 13093.57091 | K105: 16.39213345 | L105: 2190.117976 | M105: 13904.69201 | N105: 1974957.77 | O105: 668510.0317 | P105: 110746.0291
G106: 99 | H106: 133.4166621 | I106: 17800.00573 | J106: 13208.24955 | K106: 16.58333776 | L106: 2212.493571 | M106: 14038.20427 | N106: 1992783.304 | O106: 681660.9419 | P106: 112947.3349
G107: 100 | H107: 133.2243979 | I107: 17748.7402 | J107: 13322.43979 | K107: 16.77560196 | L107: 2234.91947 | M107: 14171.5248 | N107: 2010557.677 | O107: 694926.2866 | P107: 115171.0414
G108: 101 | H108: 133.031067 | I108: 17697.26478 | J108: 13436.13776 | K108: 16.96893291 | L108: 2257.39525 | M108: 14304.65254 | N108: 2028280.679 | O108: 708305.5754 | P108: 117417.1988
G109: 102 | H109: 132.8366627 | I109: 17645.57895 | J109: 13549.33959 | K109: 17.16333719 | L109: 2279.920433 | M109: 14437.5864 | N109: 2045952.101 | O109: 721798.314 | P109: 119685.8566
G110: 103 | H110: 132.6411788 | I110: 17593.68232 | J110: 13662.04142 | K110: 17.35882106 | L110: 2302.494488 | M110: 14570.32532 | N110: 2063571.732 | O110: 735404.0045 | P110: 121977.0641
G111: 104 | H111: 132.4446094 | I111: 17541.57456 | J111: 13774.23938 | K111: 17.55539048 | L111: 2325.116835 | M111: 14702.86822 | N111: 2081139.36 | O111: 749122.1449 | P111: 124290.8697
G112: 105 | H112: 132.2469487 | I112: 17489.25545 | J112: 13885.92962 | K112: 17.75305113 | L112: 2347.786843 | M112: 14835.21399 | N112: 2098654.775 | O112: 762952.2294 | P112: 126627.3216
G113: 106 | H113: 132.0481915 | I113: 17436.72487 | J113: 13997.1083 | K113: 17.9518084 | L113: 2370.503833 | M113: 14967.36156 | N113: 2116117.766 | O113: 776893.7484 | P113: 128986.4669
G114: 107 | H114: 131.8483325 | I114: 17383.98277 | J114: 14107.77157 | K114: 18.15166741 | L114: 2393.26708 | M114: 15099.30983 | N114: 2133528.119 | O114: 790946.1883 | P114: 131368.3524
G115: 108 | H115: 131.6473669 | I115: 17331.0292 | J115: 14217.91562 | K115: 18.352633 | L115: 2416.07581 | M115: 15231.05768 | N115: 2150885.625 | O115: 805109.0319 | P115: 133773.0238
G116: 109 | H116: 131.4452901 | I116: 17277.8643 | J116: 14327.53662 | K116: 18.55470975 | L116: 2438.929207 | M116: 15362.604 | N116: 2168190.072 | O116: 819381.758 | P116: 136200.5263
G117: 110 | H117: 131.2420979 | I117: 17224.48826 | J117: 14436.63077 | K117: 18.75790198 | L117: 2461.826408 | M117: 15493.9477 | N117: 2185441.248 | O117: 833763.8417 | P117: 138650.9041
G118: 111 | H118: 131.0377861 | I118: 17170.90139 | J118: 14545.19426 | K118: 18.96221374 | L118: 2484.766509 | M118: 15625.08764 | N118: 2202638.943 | O118: 848254.7543 | P118: 141124.2006
G119: 112 | H119: 130.832351 | I119: 17117.10407 | J119: 14653.22331 | K119: 19.16764887 | L119: 2507.748565 | M119: 15756.02271 | N119: 2219782.946 | O119: 862853.963 | P119: 143620.4581
G120: 113 | H120: 130.6257889 | I120: 17063.09673 | J120: 14760.71415 | K120: 19.37421094 | L120: 2530.77159 | M120: 15886.75178 | N120: 2236873.046 | O120: 877560.9318 | P120: 146139.7182
G121: 114 | H121: 130.4180966 | I121: 17008.87991 | J121: 14867.66301 | K121: 19.5819033 | L121: 2553.834556 | M121: 16017.27372 | N121: 2253909.035 | O121: 892375.1204 | P121: 148682.0213
G122: 115 | H122: 130.2092708 | I122: 16954.4542 | J122: 14974.06614 | K122: 19.79072907 | L122: 2576.936401 | M122: 16147.58741 | N122: 2270890.702 | O122: 907295.9849 | P122: 151247.4068
G123: 116 | H123: 129.9993087 | I123: 16899.82027 | J123: 15079.91981 | K123: 20.00069114 | L123: 2600.076022 | M123: 16277.6917 | N123: 2287817.839 | O123: 922322.9779 | P123: 153835.913
G124: 117 | H124: 129.7882077 | I124: 16844.97885 | J124: 15185.2203 | K124: 20.21179219 | L124: 2623.252283 | M124: 16407.58545 | N124: 2304690.239 | O124: 937455.548 | P124: 156447.5771
G125: 118 | H125: 129.5759652 | I125: 16789.93075 | J125: 15289.96389 | K125: 20.42403471 | L125: 2646.46401 | M125: 16537.26754 | N125: 2321507.693 | O125: 952693.1401 | P125: 159082.4353
G126: 119 | H126: 129.3625789 | I126: 16734.67683 | J126: 15394.14689 | K126: 20.63742095 | L126: 2669.709996 | M126: 16666.73681 | N126: 2338269.997 | O126: 968035.1955 | P126: 161740.5223
G127: 120 | H127: 129.1480469 | I127: 16679.21801 | J127: 15497.76563 | K127: 20.85195299 | L127: 2692.989003 | M127: 16795.99213 | N127: 2354976.945 | O127: 983481.1517 | P127: 164421.8718
G128: 121 | H128: 128.9323672 | I128: 16623.5553 | J128: 15600.81643 | K128: 21.06763272 | L128: 2716.299757 | M128: 16925.03233 | N128: 2371628.331 | O128: 999030.4427 | P128: 167126.5161
G129: 122 | H129: 128.7155381 | I129: 16567.68974 | J129: 15703.29564 | K129: 21.28446183 | L129: 2739.640956 | M129: 17053.85628 | N129: 2388223.954 | O129: 1014682.499 | P129: 169854.4865
G130: 123 | H130: 128.497558 | I130: 16511.62242 | J130: 15805.19964 | K130: 21.50244184 | L130: 2763.011268 | M130: 17182.46283 | N130: 2404763.61 | O130: 1030436.746 | P130: 172605.8126
G131: 124 | H131: 128.2784258 | I131: 16455.35452 | J131: 15906.5248 | K131: 21.7215741 | L131: 2786.409331 | M131: 17310.85082 | N131: 2421247.098 | O131: 1046292.609 | P131: 175380.5229
G132: 125 | H132: 128.0581401 | I132: 16398.88724 | J132: 16007.26751 | K132: 21.94185979 | L132: 2809.833754 | M132: 17439.01911 | N132: 2437674.219 | O132: 1062249.505 | P132: 178178.6445
G133: 126 | H133: 127.8366999 | I133: 16342.22185 | J133: 16107.42419 | K133: 22.16329993 | L133: 2833.283123 | M133: 17566.96653 | N133: 2454044.774 | O133: 1078306.851 | P133: 181000.2029
G134: 127 | H134: 127.6141045 | I134: 16285.35966 | J134: 16206.99127 | K134: 22.38589539 | L134: 2856.755994 | M134: 17694.69193 | N134: 2470358.564 | O134: 1094464.058 | P134: 183845.2225
G135: 128 | H135: 127.390353 | I135: 16228.30203 | J135: 16305.96518 | K135: 22.60964689 | L135: 2880.250899 | M135: 17822.19416 | N135: 2486615.395 | O135: 1110720.537 | P135: 186713.7259
G136: 129 | H136: =1.76690517130399E-14*G136^6 - 6.37624894493627E-11*G136^5 + 4.21256178533697E-08*G136^4 - 0.0000119472828554734*G136^3 + 0.00113437686039219*G136^2 - 0.19893471020805*G136 + 150.128777249476 -> 127.1654449 | I136: =H136^2 -> 16171.05037 | J136: =H136*G136 -> 16404.34239 | K136: =-1.76690517924492E-14*G136^6 + 6.37624895306779E-11*G136^5 - 4.21256178932683E-08*G136^4 + 0.0000119472828785661*G136^3 - 0.00113437687042506*G136^2 + 0.198934711790571*G136 - 0.128777450416237 -> 22.83455501 | L136: =H136*K136 -> 2903.766347 | M136: 17949.47206 | N136: 2502815.071 | O136: 1127075.69 | P136: 189605.7345
G137: =G136+G$5 -> 130 | H137: 126.9393797 | I137: 16113.60611 | J137: 16502.11936 | K137: 23.06062019 | L137: 2927.300823 | M137: =M136+0.5*(H137+H136)*G$5 -> 18076.52447 | N137: =N136+0.5*(I137+I136)*G$5 -> 2518957.4 | O137: =O136+0.5*(J137+J136)*G$5 -> 1143528.921 | P137: =P136+0.5*(L137+L136)*G$5 -> 192521.2681
G138: 131 | H138: 126.7121571 | I138: 16055.97077 | J138: 16599.29258 | K138: 23.28784274 | L138: 2950.852789 | M138: 18203.35024 | N138: 2535042.188 | O138: 1160079.627 | P138: 195460.3449
G139: 132 | H139: 126.483777 | I139: 15998.14585 | J139: 16695.85857 | K139: 23.51622285 | L139: 2974.420688 | M139: 18329.94821 | N139: 2551069.246 | O139: 1176727.203 | P139: 198422.9817
G140: 133 | H140: 126.2542393 | I140: 15940.13294 | J140: 16791.81382 | K140: 23.7457606 | L140: 2998.00294 | M140: 18456.31721 | N140: 2567038.386 | O140: 1193471.039 | P140: 201409.1935
G141: 134 | H141: 126.023544 | I141: 15881.93363 | J141: 16887.15489 | K141: 23.97645592 | L141: 3021.597947 | M141: 18582.45611 | N141: 2582949.419 | O141: 1210310.523 | P141: 204418.9939
G142: 135 | H142: 125.7916912 | I142: 15823.54957 | J142: 16981.87831 | K142: 24.20830869 | L142: 3045.204091 | M142: 18708.36372 | N142: 2598802.161 | O142: 1227245.04 | P142: 207452.3949
G143: 136 | H143: 125.5586812 | I143: 15764.98243 | J143: 17075.98065 | K143: 24.44131866 | L143: 3068.819738 | M143: 18834.03891 | N143: 2614596.427 | O143: 1244273.969 | P143: 210509.4068
G144: 137 | H144: 125.3245144 | I144: 15706.23391 | J144: 17169.45847 | K144: 24.67548547 | L144: 3092.443235 | M144: 18959.48051 | N144: 2630332.035 | O144: 1261396.689 | P144: 213590.0383
G145: 138 | H145: 125.0891912 | I145: 15647.30575 | J145: 17262.30838 | K145: 24.91080872 | L145: 3116.072913 | M145: 19084.68736 | N145: 2646008.805 | O145: 1278612.572 | P145: 216694.2964
G146: 139 | H146: 124.852712 | I146: 15588.1997 | J146: 17354.52697 | K146: 25.14728787 | L146: 3139.70709 | M146: 19209.65831 | N146: 2661626.557 | O146: 1295920.99 | P146: 219822.1864
G147: 140 | H147: 124.6150775 | I147: 15528.91755 | J147: 17446.11085 | K147: 25.38492234 | L147: 3163.344066 | M147: 19334.39221 | N147: 2677185.116 | O147: 1313321.309 | P147: 222973.712
G148: 141 | H148: 124.3762884 | I148: 15469.46111 | J148: 17537.05666 | K148: 25.62371149 | L148: 3186.98213 | M148: 19458.88789 | N148: 2692684.305 | O148: 1330812.893 | P148: 226148.8751
G149: 142 | H149: 124.1363453 | I149: 15409.83222 | J149: 17627.36103 | K149: 25.86365457 | L149: 3210.619555 | M149: 19583.14421 | N149: 2708123.952 | O149: 1348395.102 | P149: 229347.6759
G150: 143 | H150: 123.8952491 | I150: 15350.03274 | J150: 17717.02061 | K150: 26.10475082 | L150: 3234.254605 | M150: 19707.16 | N150: 2723503.885 | O150: 1366067.292 | P150: 232570.113
G151: 144 | H151: 123.6530005 | I151: 15290.06453 | J151: 17806.03207 | K151: 26.3469994 | L151: 3257.88553 | M151: 19830.93413 | N151: 2738823.933 | O151: 1383828.819 | P151: 235816.1831
G152: 145 | H152: 123.4096004 | I152: 15229.92948 | J152: 17894.39206 | K152: 26.59039943 | L152: 3281.510569 | M152: 19954.46543 | N152: 2754083.93 | O152: 1401679.031 | P152: 239085.8811
G153: 146 | H153: 123.1650499 | I153: 15169.62952 | J153: 17982.09728 | K153: 26.83494998 | L153: 3305.127953 | M153: 20077.75275 | N153: 2769283.71 | O153: 1419617.276 | P153: 242379.2004
G154: 147 | H154: 122.9193498 | I154: 15109.16655 | J154: 18069.14442 | K154: 27.0806501 | L154: 3328.735902 | M154: 20200.79495 | N154: 2784423.108 | O154: 1437642.896 | P154: 245696.1323
G155: 148 | H155: 122.6725011 | I155: 15048.54252 | J155: 18155.53016 | K155: 27.3274988 | L155: 3352.332626 | M155: 20323.59088 | N155: 2799501.962 | O155: 1455755.234 | P155: 249036.6666
G156: 149 | H156: 122.4245048 | I156: 14987.75937 | J156: 18241.25121 | K156: 27.57549508 | L156: 3375.916329 | M156: 20446.13938 | N156: 2814520.113 | O156: 1473953.624 | P156: 252400.7911
G157: 150 | H157: 122.175362 | I157: 14926.81907 | J157: 18326.3043 | K157: 27.8246379 | L157: 3399.485207 | M157: 20568.43931 | N157: 2829477.402 | O157: 1492237.402 | P157: 255788.4918
G158: 151 | H158: 121.9250737 | I158: 14865.72359 | J158: 18410.68612 | K158: 28.07492622 | L158: 3423.037447 | M158: 20690.48953 | N158: 2844373.674 | O158: 1510605.897 | P158: 259199.7531
G159: 152 | H159: 121.6736409 | I159: 14804.47489 | J159: 18494.39341 | K159: 28.32635899 | L159: 3446.571232 | M159: 20812.28889 | N159: 2859208.773 | O159: 1529058.437 | P159: 262634.5575
G160: 153 | H160: 121.4210647 | I160: 14743.07495 | J160: 18577.4229 | K160: 28.57893518 | L160: 3470.084737 | M160: 20933.83624 | N160: 2873982.548 | O160: 1547594.345 | P160: 266092.8855
G161: 154 | H161: 121.1673461 | I161: 14681.52577 | J161: 18659.77131 | K161: 28.83265373 | L161: 3493.576135 | M161: 21055.13045 | N161: 2888694.848 | O161: 1566212.942 | P161: 269574.7159
G162: 155 | H162: 120.9124863 | I162: 14619.82933 | J162: 18741.43537 | K162: 29.08751361 | L162: 3517.04359 | M162: 21176.17036 | N162: 2903345.526 | O162: 1584913.546 | P162: 273080.0258
G163: 156 | H163: 120.6564861 | I163: 14557.98763 | J163: 18822.41182 | K163: 29.34351382 | L163: 3540.485266 | M163: 21296.95485 | N163: 2917934.434 | O163: 1603695.469 | P163: 276608.7902
G164: 157 | H164: 120.3993465 | I164: 14496.00264 | J164: 18902.6974 | K164: 29.60065335 | L164: 3563.89932 | M164: 21417.48277 | N164: 2932461.429 | O164: 1622558.024 | P164: 280160.9825
G165: 158 | H165: 120.1410686 | I165: 14433.87637 | J165: 18982.28884 | K165: 29.85893123 | L165: 3587.283907 | M165: 21537.75297 | N165: 2946926.369 | O165: 1641500.517 | P165: 283736.5741
G166: 159 | H166: 119.8816533 | I166: 14371.6108 | J166: 19061.18288 | K166: 30.11834655 | L166: 3610.63718 | M166: 21657.76434 | N166: 2961329.113 | O166: 1660522.253 | P166: 287335.5346
G167: 160 | H167: 119.6211015 | I167: 14309.20792 | J167: 19139.37623 | K167: 30.37889841 | L167: 3633.957289 | M167: 21777.51571 | N167: 2975669.522 | O167: 1679622.532 | P167: 290957.8319
G168: 161 | H168: 119.3594139 | I168: 14246.66969 | J168: 19216.86564 | K168: 30.64058595 | L168: 3657.242381 | M168: 21897.00597 | N168: 2989947.461 | O168: 1698800.653 | P168: 294603.4317
G169: 162 | H169: 119.0965915 | I169: 14183.99811 | J169: 19293.64782 | K169: 30.90340838 | L169: 3680.490603 | M169: 22016.23397 | N169: 3004162.795 | O169: 1718055.91 | P169: 298272.2982
G170: 163 | H170: 118.8326349 | I170: 14121.19512 | J170: 19369.71949 | K170: 31.16736496 | L170: 3703.700101 | M170: 22135.19859 | N170: 3018315.391 | O170: 1737387.594 | P170: 301964.3936
G171: 164 | H171: 118.5675449 | I171: 14058.2627 | J171: 19445.07736 | K171: 31.432455 | L171: 3726.869019 | M171: 22253.89868 | N171: 3032405.12 | O171: 1756794.992 | P171: 305679.6781
G172: 165 | H172: 118.301322 | I172: 13995.20278 | J172: 19519.71812 | K172: 31.69867791 | L172: 3749.995501 | M172: 22372.33311 | N172: 3046431.853 | O172: 1776277.39 | P172: 309418.1104
G173: 166 | H173: 118.0339667 | I173: 13932.01731 | J173: 19593.63848 | K173: 31.96603313 | L173: 3773.077691 | M173: 22490.50075 | N173: 3060395.463 | O173: 1795834.068 | P173: 313179.647
G174: 167 | H174: 117.7654797 | I174: 13868.7082 | J174: 19666.8351 | K174: 32.2345202 | L174: 3796.113733 | M174: 22608.40048 | N174: 3074295.826 | O174: 1815464.305 | P174: 316964.2427
G175: 168 | H175: 117.4958611 | I175: 13805.27738 | J175: 19739.30467 | K175: 32.50413875 | L175: 3819.101772 | M175: 22726.03115 | N175: 3088132.818 | O175: 1835167.375 | P175: 320771.8504
G176: 169 | H176: 117.2251114 | I176: 13741.72674 | J176: 19811.04382 | K176: 32.77488848 | L176: 3842.039953 | M176: 22843.39163 | N176: 3101906.321 | O176: 1854942.549 | P176: 324602.4213
G177: 170 | H177: 116.9532307 | I177: 13678.05816 | J177: 19882.04921 | K177: 33.04676921 | L177: 3864.926422 | M177: 22960.4808 | N177: 3115616.213 | O177: 1874789.096 | P177: 328455.9045
G178: 171 | H178: 116.680219 | I178: 13614.27351 | J178: 19952.31745 | K178: 33.31978084 | L178: 3887.759327 | M178: 23077.29753 | N178: 3129262.379 | O178: 1894706.279 | P178: 332332.2474
G179: 172 | H179: 116.4060765 | I179: 13550.37464 | J179: 20021.84515 | K179: 33.59392339 | L179: 3910.536815 | M179: 23193.84068 | N179: 3142844.703 | O179: 1914693.36 | P179: 336231.3954
G180: 173 | H180: 116.1308029 | I180: 13486.36338 | J180: 20090.6289 | K180: 33.86919697 | L180: 3933.257037 | M180: 23310.10912 | N180: 3156363.072 | O180: 1934749.597 | P180: 340153.2924
G181: 174 | H181: 115.854398 | I181: 13422.24155 | J181: 20158.66526 | K181: 34.14560183 | L181: 3955.918145 | M181: 23426.10172 | N181: 3169817.374 | O181: 1954874.244 | P181: 344097.88
G182: 175 | H182: 115.5768615 | I182: 13358.01092 | J182: 20225.95077 | K182: 34.42313833 | L182: 3978.518292 | M182: 23541.81735 | N182: 3183207.501 | O182: 1975066.552 | P182: 348065.0982
G183: 176 | H183: 115.2981929 | I183: 13293.67329 | J183: 20292.48195 | K183: 34.70180696 | L183: 4001.055633 | M183: 23657.25487 | N183: 3196533.343 | O183: 1995325.769 | P183: 352054.8851
G184: 177 | H184: 115.0183915 | I184: 13229.23039 | J184: 20358.2553 | K184: 34.98160835 | L184: 4023.528325 | M184: 23772.41317 | N184: 3209794.795 | O184: 2015651.137 | P184: 356067.1771
G185: 178 | H185: 114.7374566 | I185: 13164.68395 | J185: 20423.26728 | K185: 35.26254326 | L185: 4045.934527 | M185: 23887.29109 | N185: 3222991.752 | O185: 2036041.899 | P185: 360101.9085
G186: 179 | H186: 114.4553873 | I186: 13100.03568 | J186: 20487.51432 | K186: 35.54461259 | L186: 4068.2724 | M186: 24001.88751 | N186: 3236124.112 | O186: 2056497.289 | P186: 364159.012
G187: 180 | H187: 114.1721825 | I187: 13035.28725 | J187: 20550.99284 | K187: 35.82781741 | L187: 4090.540106 | M187: 24116.2013 | N187: 3249191.773 | O187: 2077016.543 | P187: 368238.4183
G188: 181 | H188: 113.8878409 | I188: 12970.44031 | J188: 20613.69921 | K188: 36.11215892 | L188: 4112.735812 | M188: 24230.23131 | N188: 3262194.637 | O188: 2097598.889 | P188: 372340.0562
G189: 182 | H189: 113.6023614 | I189: 12905.49651 | J189: 20675.62977 | K189: 36.3976385 | L189: 4134.857682 | M189: 24343.97641 | N189: 3275132.605 | O189: 2118243.554 | P189: 376463.853
G190: 183 | H190: 113.3157422 | I190: 12840.45743 | J190: 20736.78082 | K190: 36.68425768 | L190: 4156.903885 | M190: 24457.43546 | N190: 3288005.582 | O190: 2138949.759 | P190: 380609.7337
G191: 184 | H191: 113.0279817 | I191: 12775.32465 | J191: 20797.14863 | K191: 36.97201817 | L191: 4178.872593 | M191: 24570.60732 | N191: 3300813.473 | O191: 2159716.724 | P191: 384777.622
G192: 185 | H192: 112.739078 | I192: 12710.09971 | J192: 20856.72943 | K192: 37.26092185 | L192: 4200.761975 | M192: 24683.49085 | N192: 3313556.185 | O192: 2180543.663 | P192: 388967.4393
G193: 186 | H193: 112.4490291 | I193: 12644.78414 | J193: 20915.51941 | K193: 37.55097079 | L193: 4222.570206 | M193: 24796.08491 | N193: 3326233.627 | O193: 2201429.787 | P193: 393179.1054
G194: 187 | H194: 112.1578326 | I194: 12579.37942 | J194: 20973.5147 | K194: 37.84216724 | L194: 4244.295459 | M194: 24908.38834 | N194: 3338845.709 | O194: 2222374.304 | P194: 397412.5382
G195: 188 | H195: 111.8654862 | I195: 12513.88701 | J195: 21030.71141 | K195: 38.13451364 | L195: 4265.93591 | M195: 25020.4 | N195: 3351392.342 | O195: 2243376.417 | P195: 401667.6539
G196: 189 | H196: 111.5719872 | I196: 12448.30833 | J196: 21087.10558 | K196: 38.42801264 | L196: 4287.489735 | M196: 25132.11873 | N196: 3363873.44 | O196: 2264435.326 | P196: 405944.3667
G197: 190 | H197: 111.2773328 | I197: 12382.64479 | J197: 21142.69323 | K197: 38.72266709 | L197: 4308.955111 | M197: 25243.54339 | N197: 3376288.917 | O197: 2285550.225 | P197: 410242.5891
G198: 191 | H198: 110.9815198 | I198: 12316.89775 | J198: 21197.47029 | K198: 39.01848002 | L198: 4330.330214 | M198: 25354.67282 | N198: 3388638.688 | O198: 2306720.307 | P198: 414562.2318
G199: 192 | H199: 110.6845451 | I199: 12251.06853 | J199: 21251.43267 | K199: 39.31545471 | L199: 4351.613222 | M199: 25465.50585 | N199: 3400922.671 | O199: 2327944.758 | P199: 418903.2035
G200: 193 | H200: =1.76690517130399E-14*G200^6 - 6.37624894493627E-11*G200^5 + 4.21256178533697E-08*G200^4 - 0.0000119472828554734*G200^3 + 0.00113437686039219*G200^2 - 0.19893471020805*G200 + 150.128777249476 -> 110.3864052 | I200: =H200^2 -> 12185.15846 | J200: =H200*G200 -> 21304.57621 | K200: =-1.76690517924492E-14*G200^6 + 6.37624895306779E-11*G200^5 - 4.21256178932683E-08*G200^4 + 0.0000119472828785661*G200^3 - 0.00113437687042506*G200^2 + 0.198934711790571*G200 - 0.128777450416237 -> 39.61359464 | L200: =H200*K200 -> 4372.80231 | M200: 25576.04133 | N200: 3413140.784 | O200: 2349222.763 | P200: 423265.4113
G201: =G200+G$5 -> 194 | H201: 110.0870963 | I201: 12119.16878 | J201: 21356.89669 | K201: 39.91290353 | L201: 4393.895655 | M201: =M200+0.5*(H201+H200)*G$5 -> 25686.27808 | N201: =N200+0.5*(I201+I200)*G$5 -> 3425292.948 | O201: =O200+0.5*(J201+J200)*G$5 -> 2370553.499 | P201: =P200+0.5*(L201+L200)*G$5 -> 427648.7603
G202: 195 | H202: 109.7866146 | I202: 12053.10074 | J202: 21408.38984 | K202: 40.21338529 | L202: 4414.891432 | M202: 25796.21493 | N202: 3437379.083 | O202: 2391936.142 | P202: 432053.1538
G203: 196 | H203: 109.4849557 | I203: 11986.95553 | J203: 21459.05133 | K203: 40.51504411 | L203: 4435.787812 | M203: 25905.85072 | N203: 3449399.111 | O203: 2413369.863 | P203: 436478.4934
... 174 more rows
